bitfinex-derivatives/quotes_SOLF0:USTF0_20251107
["timestamp","ask_amount","ask_price","bid_price","bid_amount"]
[1762525640772,0.87,152.29,152.28,0.04814512]
[1762525641275,0.91993999,152.31,152.28,0.04814512]
[1762525643070,0.91993999,152.31,152.28,3.17814512]
[1762525643071,0.04993999,152.31,152.28,3.17814512]
[1762525643273,0.04993999,152.31,152.28,0.04814512]
[1762525644071,0.04993999,152.31,152.28,3.17814512]
[1762525644869,5.96283999,152.31,152.28,0.04814512]
[1762525645069,0.91993999,152.31,152.28,0.04814512]
[1762525646074,5.9132,152.3,152.28,0.04814512]
[1762525647479,0.04993999,152.31,152.28,0.04814512]
[1762525647680,0.04993999,152.31,152.28,3.17814512]
[1762525649976,422.0497789,152.44,152.3,5.82953493]
[1762525650177,0.92,152.42,152.31,3.13]
[1762525650385,0.92,152.42,152.3,5.82953493]
[1762525650681,5.9116,152.34,152.3,3.13]
[1762525651084,0.04470113,152.34,152.3,3.17995753]
[1762525651776,0.92,152.42,152.33,3.13]
[1762525652080,0.92,152.42,152.34,9.0413]
[1762525652479,0.92,152.42,152.35,8.95953493]
[1762525652974,0.04599666,152.4,152.37,3.17586753]
[1762525653171,0.04547943,152.4,152.37,3.17944704]
[1762525654882,0.92,152.49,152.39,3.13]
[1762525655181,0.92,152.49,152.41,14.81813493]
[1762525655387,0.92,152.49,152.41,8.90953493]
[1762525655585,0.92,152.49,152.41,14.81813493]
[1762525655780,0.04218879,152.47,152.44,3.08]
[1762525656085,0.96,152.53,152.46,3.08]
[1762525657078,0.96,152.53,152.48,0.05049694]
[1762525657386,0.96,152.53,152.48,3.13049694]
[1762525657981,6.8643,152.53,152.48,3.13049694]
[1762525658287,0.96,152.58,152.48,3.13049694]
[1762525658481,0.96,152.58,152.51,0.0490792]
[1762525658878,1.14098361,152.61,152.51,0.0490792]
[1762525658879,0.96,152.56,152.51,0.0490792]
[1762525659075,0.96,152.56,152.52,0.04328693]
[1762525659487,0.96,152.53,152.52,0.04328693]
[1762525660278,0.96,152.53,152.37,67.82953493]
[1762525660279,1.32,152.53,152.38,3.19]
[1762525660483,0.96,152.49,152.4,3.19]
[1762525661084,5.9071,152.46,152.4,3.19]
[1762525661390,0.04925525,152.45,152.41,3.23209966]
[1762525662284,0.96,152.55,152.43,3.19]
[1762525662785,1.01,152.52,152.4,3.19]
[1762525662982,1.01,152.49,152.4,3.19]
[1762525663383,1.01,152.49,152.43,0.0501276]
[1762525663794,1.01,152.46,152.43,0.0501276]
[1762525664086,1.01,152.46,152.43,0.04179904]
[1762525664283,1.01,152.52,152.43,0.04179904]
[1762525664484,1.01,152.47,152.46,0.04216982]
[1762525665083,2.33,152.47,152.46,0.04216982]
[1762525665284,2.33,152.47,152.36,3.19]
[1762525665285,1.01,152.46,152.36,3.19]
[1762525665992,5.9079,152.44,152.37,3.19]
[1762525666286,0.04422988,152.42,152.39,3.23163072]
[1762525666490,0.04422988,152.42,152.39,3.23766879]
[1762525666491,0.04352686,152.42,152.39,3.23766879]
[1762525667189,5.9058,152.49,152.4,3.19]
[1762525667390,1.01,152.5,152.4,3.19]
[1762525667685,1.01,152.5,152.41,3.19]
[1762525667885,1.01,152.5,152.43,9.0978]
[1762525668282,1.01,152.5,152.45,3.23589981]
[1762525668891,1.01,152.54,152.45,3.23589981]
[1762525669091,1.01,152.54,152.48,0.04895916]
[1762525669684,1.01,152.52,152.48,0.04895916]
[1762525670179,5.9051,152.51,152.48,0.04895916]
[1762525670380,1.01,152.51,152.48,0.04895916]
[1762525671087,1.01,152.49,152.48,0.04895916]
[1762525672686,2.33,152.49,152.48,0.04895916]
[1762525672884,1.01,152.47,152.37,3.19]
[1762525673483,5.9078,152.44,152.37,3.19]
[1762525673888,1.01,152.47,152.37,3.19]
[1762525674091,5.95464278,152.42,152.39,0.04168796]
[1762525674292,1.05614278,152.42,152.39,0.04168796]
[1762525675997,1.01,152.4,152.39,0.04168796]
[1762525676198,1.01,152.4,152.3,9.01953493]
[1762525676398,1.01,152.4,152.3,3.19]
[1762525676892,5.9111,152.36,152.3,3.19]
[1762525677289,0.04970907,152.35,152.31,3.23243758]
[1762525677893,1.01,152.44,152.33,5.9116]
[1762525678091,1.01,152.44,152.34,3.19]
[1762525678291,1.01,152.44,152.3,9.01953493]
[1762525678495,1.01,152.41,152.31,3.19]
[1762525678989,1.05313919,152.38,152.34,0.04163726]
[1762525679998,0.04313919,152.38,152.34,3.23163726]
[1762525680194,0.04313919,152.38,152.34,0.04163726]
[1762525680399,1.01,152.46,152.34,3.23163726]
[1762525680593,1.01,152.46,152.32,5.82953493]
[1762525680594,1.01,152.49,152.36,3.19]
[1762525680795,5.9071,152.46,152.37,3.19]
[1762525681100,1.01,152.48,152.37,3.19]
[1762525681399,6.9184,152.42,152.41,0.04308927]
[1762525681702,1.01,152.46,152.41,0.04308927]
[1762525681892,5.9079,152.44,152.41,0.04308927]
[1762525682088,5.82953493,152.49,152.41,3.23308927]
[1762525682291,1.01,152.5,152.41,3.23308927]
[1762525682594,1.01,152.48,152.41,0.04308927]
[1762525682792,1.01,152.48,152.43,0.04220995]
[1762525683204,6.9176,152.44,152.43,0.04220995]
[1762525683594,1.01,152.46,152.43,0.04220995]
[1762525684102,5.9074,152.45,152.43,0.04220995]
[1762525684301,6.9174,152.45,152.43,0.04220995]
[1762525684496,1.01,152.44,152.43,0.04220995]
[1762525685706,1.01,152.47,152.43,0.04220995]
[1762525685896,5.82953493,152.49,152.43,0.04220995]
[1762525686203,1.01,152.48,152.43,0.04220995]
[1762525686403,1.01,152.44,152.43,0.04220995]
[1762525686810,5.9075,152.45,152.43,0.04220995]
[1762525687698,17.8594789,152.52,152.43,3.15220995]
[1762525687699,5.82953493,152.51,152.43,3.15220995]
[1762525688003,1.01,152.51,152.43,3.15220995]
[1762525688801,6.83953493,152.51,152.43,0.04220995]
[1762525689002,1.01,152.5,152.43,0.04220995]
[1762525689398,1.01,152.47,152.43,0.04220995]
[1762525689907,1.01,152.51,152.43,0.04220995]
[1762525690403,5.9062,152.48,152.44,3.11]
[1762525690602,1.01,152.51,152.44,3.11]
[1762525691003,1.01,152.49,152.43,0.04220995]
[1762525691203,1.01,152.49,152.44,0.04477483]
[1762525691808,5.907,152.46,152.44,0.04477483]
[1762525692205,1.01,152.45,152.44,0.04477483]
[1762525692511,5.907,152.46,152.44,0.04477483]
[1762525692811,6.917,152.46,152.44,0.04477483]
[1762525693403,1.01,152.45,152.44,0.04477483]
[1762525694010,2.33,152.45,152.44,0.04477483]
[1762525694409,5.91,152.38,152.33,3.11]
[1762525694606,0.97,152.44,152.33,3.11]
[1762525694814,0.97,152.44,152.34,3.11]
[1762525695515,0.04496941,152.41,152.37,3.15349997]
[1762525696015,5.95396941,152.41,152.37,3.15349997]
[1762525696217,0.04496941,152.41,152.37,3.15349997]
[1762525697412,1.01496941,152.41,152.37,0.04349997]
[1762525697614,5.9097,152.39,152.37,0.04349997]
[1762525700115,5.9097,152.39,152.37,3.15349997]
[1762525700319,5.95396941,152.41,152.37,3.15349997]
[1762525701118,0.04496941,152.41,152.37,3.15349997]
[1762525701712,5.95386941,152.41,152.37,3.15349997]
[1762525701913,0.04496941,152.41,152.37,3.15349997]
[1762525702624,5.9093,152.4,152.37,3.15349997]
[1762525703619,5.9097,152.39,152.37,0.04349997]
[1762525704316,0.97,152.38,152.37,0.04349997]
[1762525704510,5.9097,152.39,152.37,0.04349997]
[1762525704719,1.01496941,152.41,152.37,0.04349997]
[1762525706123,5.9096,152.39,152.37,0.04349997]
[1762525707333,5.95376941,152.41,152.37,3.15349997]
[1762525709026,0.04496941,152.41,152.37,3.15349997]
[1762525710026,1.01496941,152.41,152.37,0.04349997]
[1762525710522,5.9097,152.39,152.37,0.04349997]
[1762525710926,6.8797,152.39,152.37,0.04349997]
[1762525713239,0.97,152.38,152.37,0.04349997]
[1762525713439,0.97,152.38,152.3,3.11]
[1762525714439,0.97,152.35,152.32,0.04448586]
[1762525714641,0.97,152.35,152.32,0.0480021]
[1762525715737,5.9116,152.34,152.32,0.0480021]
[1762525715949,5.9116,152.34,152.26,282.05235957]
[1762525715950,0.98,152.33,152.22,2.98]
[1762525716632,6.8922,152.33,152.22,2.98]
[1762525716828,0.98,152.33,152.22,2.98]
[1762525717034,0.04596686,152.29,152.26,0.05041172]
[1762525717242,0.04596686,152.29,152.27,2.98]
[1762525717736,0.98,152.37,152.27,2.98]
[1762525718133,0.98,152.37,152.3,2.98]
[1762525718534,0.04989652,152.35,152.32,0.04427765]
[1762525718731,5.96109652,152.35,152.32,0.04427765]
[1762525719243,5.9116,152.34,152.32,0.04427765]
[1762525719542,0.98,152.33,152.32,0.04427765]
[1762525720147,1.02989652,152.35,152.32,0.04427765]
[1762525720637,0.04989652,152.35,152.32,3.22427765]
[1762525724644,0.04989652,152.35,152.33,3.18]
[1762525728651,0.04989652,152.35,152.32,0.04427765]
[1762525729046,5.96109652,152.35,152.32,3.22427765]
[1762525729653,5.9116,152.34,152.32,3.22427765]
[1762525729854,0.04989652,152.35,152.32,3.22427765]
[1762525730441,0.98,152.42,152.32,3.22427765]
[1762525730655,0.98,152.45,152.33,3.18]
[1762525731656,0.0406081,152.41,152.37,0.04509821]
[1762525731954,0.0406081,152.41,152.37,3.22509821]
[1762525733157,0.0406081,152.41,152.38,3.18]
[1762525733552,1.0206081,152.41,152.37,0.04509821]
[1762525734353,0.98,152.38,152.37,0.04509821]
[1762525734545,0.98,152.38,152.29,3.18]
[1762525735852,0.05001505,152.35,152.33,3.18]
[1762525736053,0.0432542,152.36,152.33,3.18]
[1762525736253,0.0432542,152.36,152.33,3.22967352]
[1762525736753,0.0432542,152.36,152.33,0.04967352]
[1762525736754,1.0232542,152.36,152.33,0.04967352]
[1762525736957,0.98,152.35,152.33,0.04967352]
[1762525737162,0.98,152.34,152.33,0.04967352]
[1762525738850,1.32,152.34,152.25,285.68243446]
[1762525739055,0.98,152.33,152.24,3.18]
[1762525739353,0.98,152.33,152.21,3.18]
[1762525739657,5.9144,152.27,152.21,3.18]
[1762525740055,0.04213741,152.26,152.22,3.22504056]
[1762525740559,0.98,152.38,152.24,3.18]
[1762525740955,5.9113,152.35,152.26,5.9144]
[1762525741256,0.98,152.38,152.27,3.18]
[1762525741459,0.04823035,152.34,152.32,3.18]
[1762525741965,0.98,152.42,152.32,3.18]
[1762525742159,5.9098,152.39,152.32,3.18]
[1762525742353,0.98,152.42,152.32,3.18]
[1762525742961,0.98,152.38,152.35,0.04820408]
[1762525743366,5.9106,152.37,152.35,0.04820408]
[1762525744254,0.04501207,152.39,152.35,0.04820408]
[1762525744460,0.98,152.38,152.35,0.04820408]
[1762525744857,5.9105,152.37,152.35,0.04820408]
[1762525745959,5.95481207,152.39,152.35,3.22820408]
[1762525746158,6.92481207,152.39,152.35,0.04820408]
[1762525746370,0.04501207,152.39,152.35,3.22820408]
[1762525746760,0.04501207,152.39,152.36,3.18]
[1762525747964,0.04501207,152.39,152.37,5.9102]
[1762525748160,0.97,152.47,152.38,3.18]
[1762525749064,5.9071,152.46,152.41,0.04446129]
[1762525749272,0.97,152.45,152.41,0.04446129]
[1762525750265,6.8784,152.42,152.41,0.04446129]
[1762525750564,0.04446129,152.43,152.34,3.18]
[1762525750765,5.9105,152.37,152.3,9.0928]
[1762525751073,0.97,152.41,152.3,3.18]
[1762525751274,5.9105,152.37,152.3,3.18]
[1762525751666,0.04446129,152.35,152.32,3.2214655]
[1762525752569,0.04446129,152.35,152.32,0.0414655]
[1762525753163,1.01446129,152.35,152.32,0.0414655]
[1762525753973,0.04446129,152.35,152.32,0.0414655]
[1762525754270,6.92576129,152.35,152.32,0.0414655]
[1762525754470,0.04446129,152.35,152.32,0.0414655]
[1762525755570,0.04446129,152.35,152.32,3.2214655]
[1762525755876,0.97,152.43,152.32,3.2214655]
[1762525756077,0.97,152.43,152.35,3.18]
[1762525756275,5.9086,152.42,152.35,3.18]
[1762525756577,0.97,152.43,152.35,3.18]
[1762525756874,0.97,152.43,152.37,0.04189351]
[1762525757973,5.9086,152.42,152.37,3.22189351]
[1762525758377,6.8789,152.41,152.37,0.04189351]
[1762525758676,0.97,152.45,152.37,0.04429443]
[1762525758876,6.1197584,152.47,152.39,0.04612247]
[1762525758877,0.97,152.42,152.39,0.04612247]
[1762525759872,6.879,152.41,152.39,0.04612247]
[1762525760073,0.97,152.4,152.39,0.04612247]
[1762525761376,2.29,152.4,152.39,0.04612247]
[1762525763076,0.97,152.39,152.32,3.18]
[1762525763582,0.97,152.39,152.29,3.18]
[1762525764187,0.04612247,152.36,152.32,0.04307204]
[1762525764375,0.04612247,152.36,152.32,3.22307204]
[1762525766681,0.04612247,152.36,152.32,0.04307204]
[1762525766682,1.01612247,152.36,152.32,0.04307204]
[1762525767078,0.97,152.33,152.32,0.04307204]
[1762525767986,0.97,152.32,152.25,3.18]
[1762525768487,0.97,152.3,152.21,70.28]
[1762525768977,0.97,152.33,152.22,3.18]
[1762525769174,0.0450535,152.27,152.24,3.22935769]
[1762525770983,0.97,152.37,152.24,3.22935769]
[1762525771175,0.97,152.37,152.26,3.18]
[1762525771480,1.01,152.34,152.26,3.18]
[1762525771687,1.01,152.34,152.22,3.18]
[1762525772188,1.05414101,152.3,152.26,0.04335288]
[1762525772388,1.05414101,152.3,152.26,0.0438909]
[1762525772587,5.914,152.28,152.26,0.0438909]
[1762525773087,6.924,152.28,152.26,0.0438909]
[1762525773788,5.914,152.28,152.26,0.0438909]
[1762525774187,6.924,152.28,152.26,0.0438909]
[1762525775881,1.02,152.27,152.26,0.0438909]
[1762525776978,5.914,152.28,152.26,0.0438909]
[1762525777892,5.914,152.28,152.26,3.2338909]
[1762525778783,5.95744101,152.3,152.26,3.2338909]
[1762525779588,1.06414101,152.3,152.26,0.0438909]
[1762525780182,0.04414101,152.3,152.26,3.0738909]
[1762525780690,5.9136,152.29,152.26,3.0738909]
[1762525781186,5.9139,152.28,152.26,0.0438909]
[1762525782286,1.02,152.27,152.26,0.0438909]
[1762525783889,6.9339,152.28,152.26,0.0438909]
[1762525784091,5.9139,152.28,152.26,0.0438909]
[1762525784794,1.06414101,152.3,152.26,3.0738909]
[1762525785189,5.9135,152.29,152.26,3.0738909]
[1762525785485,0.04414101,152.3,152.26,3.0738909]
[1762525785692,5.95734101,152.3,152.26,3.0738909]
[1762525786488,5.9135,152.29,152.26,3.0738909]
[1762525787691,5.9135,152.29,152.26,0.0438909]
[1762525788385,5.9135,152.29,152.26,3.0738909]
[1762525789186,5.9139,152.28,152.26,3.0738909]
[1762525789390,1.06414101,152.3,152.26,3.0738909]
[1762525789590,0.04414101,152.3,152.26,3.0738909]
[1762525790396,1.02,152.41,152.31,3.03]
[1762525791098,5.9106,152.37,152.31,3.03]
[1762525791293,6.9306,152.37,152.32,0.04566378]
[1762525791594,6.9306,152.37,152.32,3.07566378]
[1762525792397,5.9109,152.36,152.32,3.07566378]
[1762525792705,6.9306,152.37,152.32,3.07566378]
[1762525792996,1.02,152.4,152.32,3.07566378]
[1762525793198,1.02,152.4,152.34,0.04149029]
[1762525793396,6.9305,152.37,152.34,0.04149029]
[1762525793785,1.02,152.36,152.34,0.04149029]
[1762525794095,6.93,152.38,152.34,0.04149029]
[1762525794299,43.1,152.42,152.34,0.04149029]
[1762525794300,1.02,152.37,152.34,0.04149029]
[1762525794596,5.9108,152.36,152.34,0.04149029]
[1762525794800,1.02,152.37,152.34,0.04149029]
[1762525795998,5.9109,152.36,152.34,0.04149029]
[1762525797497,1.02,152.37,152.34,0.04149029]
[1762525798694,1.02,152.35,152.34,0.04149029]
[1762525799500,1.02,152.4,152.34,0.04149029]
[1762525800402,1.02,152.36,152.23,3.03]
[1762525800702,1.02,152.36,152.2,355.09025519]
[1762525800703,1.02,152.27,152.2,288.11389779]
[1762525800898,1.02,152.27,152.2,285.08389779]
[1762525801200,1.02,152.24,152.17,3.03]
[1762525801404,1.06149029,152.22,152.19,0.04573502]
[1762525801601,1.06149029,152.22,152.1,3.03]
[1762525801602,5.9187,152.16,152.1,3.03]
[1762525801807,67.12,152.24,152.1,3.03]
[1762525801808,1.02,152.24,152.1,3.03]
[1762525802000,1.02,152.24,152.12,3.03]
[1762525802200,6.1197584,152.26,152.15,3.03]
[1762525802201,5.9149,152.26,152.15,3.03]
[1762525802504,1.02,152.26,152.15,3.03]
[1762525802698,1.02,152.21,152.19,0.04151756]
[1762525803010,1.02,152.21,152.15,3.03]
[1762525803011,0.04376501,152.22,152.18,3.07506733]
[1762525803302,1.06376501,152.22,152.18,0.04506733]
[1762525803803,1.02,152.19,152.18,0.04506733]
[1762525804103,1.02,152.17,152.1,3.03]
[1762525804506,1.02,152.2,152.1,3.03]
[1762525804902,1.0,152.16,152.13,0.04448998]
[1762525805104,1.04451796,152.17,152.13,0.04448998]
[1762525805403,1.04451796,152.17,152.01,3.16]
[1762525805404,1.0,152.14,152.01,3.16]
[1762525805903,1.0,152.07,151.97,3.16]
[1762525806496,0.04604974,152.04,152.0,3.20974184]
[1762525806698,1.04604974,152.04,152.0,0.04974184]
[1762525807302,1.0,152.02,152.0,0.04974184]
[1762525807502,1.0,152.01,152.0,0.04974184]
[1762525807698,0.04604974,152.04,152.0,0.04974184]
[1762525807899,0.04604974,152.04,152.0,3.20974184]
[1762525808295,0.04604974,152.04,152.0,0.04974184]
[1762525808508,1.04604974,152.04,152.0,0.04974184]
[1762525809000,0.04604974,152.04,152.0,3.20974184]
[1762525809804,1.0,152.14,152.01,3.16]
[1762525810104,1.0,152.11,152.01,3.16]
[1762525810805,0.04701207,152.08,152.04,3.2015709]
[1762525811012,0.04937795,152.08,152.04,3.20517691]
[1762525811697,5.82073378,152.22,152.07,3.16]
[1762525811906,1.0,152.23,152.1,3.16]
[1762525812103,1.0,152.23,152.13,3.16]
[1762525812702,1.04786513,152.2,152.16,0.0426722]
[1762525812902,1.0,152.2,152.09,3.16]
[1762525813107,1.0,152.19,152.16,0.04318315]
[1762525813402,1.04361039,152.19,152.05,3.16]
[1762525813603,5.919,152.15,152.05,3.16]
[1762525813803,1.0,152.15,152.05,3.16]
[1762525813998,5.9207,152.11,152.02,3.16]
[1762525814198,1.0,152.16,152.02,3.16]
[1762525814500,0.04959099,152.11,152.07,0.043613]
[1762525814707,1.04959099,152.11,152.07,0.043613]
[1762525816403,0.04959099,152.11,152.07,0.043613]
[1762525817006,1.04959099,152.11,152.07,0.043613]
[1762525818008,6.9216,152.08,152.07,0.043613]
[1762525818199,1.0,152.08,151.98,3.16]
[1762525818511,1.0,152.14,151.98,3.16]
[1762525819110,1.04380361,152.08,152.04,0.04293193]
[1762525819408,1.04380361,152.08,152.04,0.04556976]
[1762525819603,0.04380361,152.08,152.04,0.04556976]
[1762525819806,1.04380361,152.08,152.04,0.04556976]
[1762525820009,1.04380361,152.08,151.92,3.16]
[1762525820010,1.0,152.07,151.92,3.16]
[1762525820306,1.0,152.08,151.92,3.16]
[1762525820510,1.0,152.08,151.96,3.16]
[1762525820713,1.0,152.09,151.96,3.16]
[1762525820908,0.04589513,152.04,152.01,0.04714687]
[1762525821811,0.04589513,152.04,152.01,3.20714687]
[1762525822408,1.0,152.17,152.02,3.16]
[1762525822717,1.0,152.23,152.06,3.16]
[1762525823414,0.04579468,152.16,152.13,0.04609798]
[1762525823609,0.04974658,152.16,152.13,0.04527621]
[1762525823804,1.04974658,152.16,152.13,0.04527621]
[1762525824011,10.989227,152.16,152.01,3.16]
[1762525824213,0.96,152.14,152.01,3.16]
[1762525824514,5.9216,152.09,152.01,3.16]
[1762525824717,0.96,152.11,152.01,3.16]
[1762525825110,0.04271483,152.08,152.04,0.04285913]
[1762525825309,0.04271483,152.08,152.04,3.20285913]
[1762525825717,0.96,152.15,152.04,3.20285913]
[1762525826014,0.96,152.19,152.04,3.16]
[1762525826408,0.96,152.17,152.04,3.16]
[1762525826815,0.04575935,152.12,152.09,0.04772831]
[1762525828018,0.04575935,152.12,152.09,3.20772831]
[1762525828802,1.00575935,152.12,152.09,0.04772831]
[1762525829414,0.96,152.1,152.09,0.04772831]
[1762525829615,0.96,152.1,152.0,3.16]
[1762525830017,5.9227,152.06,152.0,3.16]
[1762525830225,0.96,152.1,152.0,3.16]
[1762525830408,5.924,152.03,151.95,3.16]
[1762525830717,103.9213,152.14,151.97,3.20661441]
[1762525830718,0.05045901,152.01,151.97,3.20661441]
[1762525831020,6.8795,152.14,152.04,3.16]
[1762525831212,1.76,152.18,152.04,3.16]
[1762525831412,0.96,152.17,152.04,3.16]
[1762525831618,0.96,152.17,152.06,3.16]
[1762525831924,0.0431404,152.13,152.1,3.20966557]
[1762525834219,0.0431404,152.13,152.1,0.04966557]
[1762525835115,0.0431404,152.13,152.1,3.10966557]
[1762525836120,0.0431404,152.13,152.1,0.04966557]
[1762525836121,1.0231404,152.13,152.1,0.04966557]
[1762525836621,5.9204,152.12,152.1,0.04966557]
[1762525836820,0.0431404,152.13,152.1,0.04966557]
[1762525837020,0.0431404,152.13,152.1,3.10966557]
[1762525838122,1.0231404,152.13,152.1,0.04966557]
[1762525838624,0.0431404,152.13,152.1,0.04966557]
[1762525839024,0.98,152.12,152.1,0.04966557]
[1762525839222,0.98,152.11,152.01,3.06]
[1762525839426,0.98,152.11,151.95,9.93948042]
[1762525839623,5.9232,152.05,151.97,3.06]
[1762525839925,21.77928042,152.13,151.97,3.06]
[1762525839926,0.98,152.08,151.97,3.06]
[1762525840225,9.93948042,152.13,151.97,3.06]
[1762525840226,1.02758446,152.04,152.01,0.04896159]
[1762525840421,1.02758446,152.04,151.93,3.05]
[1762525840624,0.98,152.04,151.89,3.05]
[1762525841516,0.04777098,151.98,151.95,0.04734172]
[1762525841721,6.9061,151.97,151.95,0.04734172]
[1762525842121,6.9061,151.97,151.86,15.86968042]
[1762525842122,0.98,151.96,151.86,3.05]
[1762525842919,5.9281,151.92,151.86,3.05]
[1762525843121,1.02338535,151.91,151.87,0.04945694]
[1762525843320,1.02338535,151.91,151.77,3.05]
[1762525843321,0.98,151.91,151.77,3.05]
[1762525843626,0.93,151.9,151.77,3.05]
[1762525843830,5.9295,151.88,151.77,3.05]
[1762525844424,5.9301,151.87,151.77,3.05]
[1762525844619,0.04571238,151.84,151.8,3.09219962]
[1762525844829,0.04571238,151.84,151.8,3.09144726]
[1762525845229,0.04571238,151.84,151.8,0.04144726]
[1762525845429,5.9315,151.83,151.8,0.04144726]
[1762525845628,0.97571238,151.84,151.8,0.04144726]
[1762525846325,0.04571238,151.84,151.8,0.04144726]
[1762525846630,0.04571238,151.84,151.8,3.09144726]
[1762525846835,0.97571238,151.84,151.8,0.04144726]
[1762525847132,0.04571238,151.84,151.8,3.09144726]
[1762525847329,0.04571238,151.84,151.8,0.04144726]
[1762525847532,0.97571238,151.84,151.8,0.04144726]
[1762525847929,6.8615,151.83,151.8,0.04144726]
[1762525848328,0.93,151.82,151.8,0.04144726]
[1762525848931,0.04571238,151.84,151.8,0.04144726]
[1762525849533,0.93,151.83,151.8,0.04144726]
[1762525850137,5.9318,151.82,151.8,0.04144726]
[1762525850336,0.93,151.81,151.72,83.94]
[1762525850544,0.93,151.81,151.67,3.05]
[1762525850738,5.9345,151.76,151.67,3.05]
[1762525851130,0.93,151.78,151.67,3.05]
[1762525851436,0.04327895,151.74,151.71,0.04596782]
[1762525851931,0.93,151.72,151.71,0.04596782]
[1762525852135,0.93,151.72,151.63,3.05]
[1762525852939,0.93,151.76,151.63,3.05]
[1762525853136,5.9345,151.75,151.63,3.05]
[1762525853335,0.04535655,151.71,151.68,0.0479302]
[1762525853736,0.04535655,151.71,151.68,3.0979302]
[1762525853941,0.93,151.81,151.68,3.0979302]
[1762525854138,5.9326,151.8,151.68,8.9869]
[1762525854333,5.9326,151.8,151.69,3.05]
[1762525854532,0.93,151.81,151.69,3.05]
[1762525854931,0.04779443,151.77,151.73,0.04825337]
[1762525855833,1.02779443,151.77,151.73,0.04825337]
[1762525856039,0.98,151.76,151.65,3.05]
[1762525857038,0.98,151.74,151.59,3.05]
[1762525857240,0.98,151.71,151.59,3.05]
[1762525857443,0.04513977,151.68,151.66,3.05]
[1762525857636,0.04540368,151.69,151.66,3.05]
[1762525857837,0.04912809,151.69,151.66,3.09366229]
[1762525859141,0.04912809,151.69,151.66,0.04366229]
[1762525859437,1.02912809,151.69,151.66,0.04366229]
[1762525859639,0.04912809,151.69,151.66,0.04366229]
[1762525860036,0.04912809,151.69,151.66,3.09366229]
[1762525860236,9.93948042,151.83,151.66,3.09366229]
[1762525860434,0.98,151.86,151.7,3.05]
[1762525860638,1.14673609,151.83,151.76,3.05]
[1762525860842,5.9311,151.84,151.76,3.05]
[1762525861039,1.14637722,151.88,151.76,3.05]
[1762525861343,9.62,151.95,151.82,3.05]
[1762525861548,0.98,152.0,151.87,3.05]
[1762525861749,11.12,152.04,151.88,3.05]
[1762525862042,1.14526427,152.02,151.91,3.05]
[1762525862249,5.9247,152.01,151.91,3.05]
[1762525862744,15.52,152.08,151.95,3.05]
[1762525862745,0.04767558,151.98,151.95,3.05]
[1762525862944,5.9224,152.06,151.95,3.05]
[1762525863139,0.98,152.07,151.95,3.05]
[1762525863542,0.98,152.06,151.9,3.05]
[1762525863845,5.9255,151.98,151.96,0.04399207]
[1762525864051,0.04444599,152.0,151.95,0.04440149]
[1762525864340,6.94711992,151.99,151.95,0.04440149]
[1762525864539,6.95422899,151.99,151.95,0.04498799]
[1762525864736,5.97422899,151.99,151.95,0.04498799]
[1762525864938,0.04902899,151.99,151.95,3.12498799]
[1762525865142,16.66484982,152.08,151.95,3.12498799]
[1762525865143,1.14484982,152.08,151.95,3.12498799]
[1762525865337,0.98,152.14,151.99,3.08]
[1762525865541,92.0123,152.25,151.93,11.24]
[1762525865542,1.14439804,152.13,152.03,3.08]
[1762525865844,0.98,152.19,152.03,3.08]
[1762525866037,0.98,152.19,152.05,3.08]
[1762525866243,0.04964085,152.12,152.1,3.08]
[1762525866442,0.98,152.19,152.1,3.08]
[1762525866647,1.14400302,152.2,152.1,3.08]
[1762525866944,79.29948042,152.31,152.11,3.08]